[Event "Titled Tuesday Blitz July 11 Early 2023"]
[White "Fonseca Manrique, Enrique"]
[Black "Firouzja, Alireza"]
[WhiteFideId "5114330"]
[BlackFideId "12573981"]
[WhiteElo "2514"]
[BlackElo "3088"]
[Result "0-1"]
[Round "1"]
[TimeControl "180+2"]
[Date "2023.07.11"]
[WhiteClock "0:00:59"]
[BlackClock "0:02:19"]
[Board "3"]

1. e4 {[%clk 0:03:00]}  c5 {[%clk 0:02:58]} 2. Nf3 {[%clk 0:03:00]}  d6 {[%clk 0:02:55]} 3. d4 {[%clk 0:03:00]}  cxd4 {[%clk 0:02:56]} 4. Nxd4 {[%clk 0:03:00]}  Nf6 {[%clk 0:02:57]} 5. Nc3 {[%clk 0:03:01]}  a6 {[%clk 0:02:58]} 6. Bg5 {[%clk 0:03:01]}  e6 {[%clk 0:02:55]} 7. f4 {[%clk 0:03:01]}  Nbd7 {[%clk 0:02:52]} 8. Qe2 {[%clk 0:03:01]}  Qc7 {[%clk 0:02:52]} 9. O-O-O {[%clk 0:03:01]}  b5 {[%clk 0:02:52]} 10. a3 {[%clk 0:03:00]}  Rb8 {[%clk 0:02:52]} 11. g4 {[%clk 0:02:58]}  b4 {[%clk 0:02:51]} 12. axb4 {[%clk 0:02:58]}  Rxb4 {[%clk 0:02:52]} 13. Bg2 {[%clk 0:02:32]}  Bb7 {[%clk 0:02:46]} 14. f5 {[%clk 0:02:05]}  e5 {[%clk 0:02:44]} 15. Nb3 {[%clk 0:02:04]}  a5 {[%clk 0:02:31]} 16. Bxf6 {[%clk 0:01:58]}  gxf6 {[%clk 0:02:30]} 17. Nd5 {[%clk 0:01:48]}  Bh6+ {[%clk 0:02:29]} 18. Kb1 {[%clk 0:01:48]}  Bxd5 {[%clk 0:02:30]} 19. Rxd5 {[%clk 0:01:48]}  a4 {[%clk 0:02:30]} 20. Nc1 {[%clk 0:01:40]}  Qc3 {[%clk 0:02:23]} 21. Nd3 {[%clk 0:01:18]}  a3 {[%clk 0:02:19]} 22. b3 {[%clk 0:01:15]}  a2+ {[%clk 0:02:19]} 23. Kxa2 {[%clk 0:01:13]}  Rb7 {[%clk 0:02:19]} 24. Nb2 {[%clk 0:01:06]}  O-O {[%clk 0:02:19]} 25. Ra5 {[%clk 0:00:59]}  Qxa5+ {[%clk 0:02:19]} 0-1


[Site "https://www.chess.com"]

[Event "Titled Tuesday Blitz July 11 Early 2023"]
[White "Dubov, Daniil"]
[Black "FromTexas54"]
[WhiteFideId "24126055"]
[WhiteElo "3078"]
[BlackElo "2513"]
[Result "1-0"]
[Round "1"]
[TimeControl "180+2"]
[Date "2023.07.11"]
[WhiteClock "0:00:11"]
[BlackClock "0:00:00"]
[Board "4"]

1. e4 {[%clk 0:02:58]}  e5 {[%clk 0:02:58]} 2. Nf3 {[%clk 0:02:57]}  Nc6 {[%clk 0:02:59]} 3. Nc3 {[%clk 0:02:58]}  Nf6 {[%clk 0:02:59]} 4. Bc4 {[%clk 0:02:57]}  Nxe4 {[%clk 0:02:41]} 5. O-O {[%clk 0:02:56]}  Nxc3 {[%clk 0:02:38]} 6. dxc3 {[%clk 0:02:56]}  Be7 {[%clk 0:02:38]} 7. Qd5 {[%clk 0:02:56]}  O-O {[%clk 0:02:37]} 8. Nxe5 {[%clk 0:02:56]}  Nxe5 {[%clk 0:02:38]} 9. Qxe5 {[%clk 0:02:57]}  c6 {[%clk 0:02:30]} 10. Re1 {[%clk 0:02:55]}  Bf6 {[%clk 0:02:22]} 11. Qd6 {[%clk 0:02:54]}  Re8 {[%clk 0:02:09]} 12. Rxe8+ {[%clk 0:02:32]}  Qxe8 {[%clk 0:02:09]} 13. Bf4 {[%clk 0:02:32]}  h5 {[%clk 0:01:40]} 14. Kf1 {[%clk 0:02:30]}  Qe4 {[%clk 0:01:28]} 15. Bd3 {[%clk 0:02:27]}  Qe7 {[%clk 0:01:22]} 16. Re1 {[%clk 0:02:26]}  Qxd6 {[%clk 0:01:22]} 17. Bxd6 {[%clk 0:02:26]}  g6 {[%clk 0:01:20]} 18. Re8+ {[%clk 0:02:25]}  Kg7 {[%clk 0:01:17]} 19. Bc4 {[%clk 0:02:10]}  b5 {[%clk 0:01:02]} 20. Bf8+ {[%clk 0:01:59]}  Kg8 {[%clk 0:00:56]} 21. Bd6+ {[%clk 0:01:05]}  Kg7 {[%clk 0:00:52]} 22. Bd3 {[%clk 0:01:03]}  Bb7 {[%clk 0:00:48]} 23. Rxa8 {[%clk 0:01:02]}  Bxa8 {[%clk 0:00:49]} 24. f4 {[%clk 0:01:03]}  a5 {[%clk 0:00:44]} 25. Kf2 {[%clk 0:01:02]}  b4 {[%clk 0:00:35]} 26. cxb4 {[%clk 0:00:56]}  axb4 {[%clk 0:00:36]} 27. Bxb4 {[%clk 0:00:50]}  Bxb2 {[%clk 0:00:35]} 28. Bc5 {[%clk 0:00:43]}  Kf6 {[%clk 0:00:24]} 29. a4 {[%clk 0:00:34]}  Ke6 {[%clk 0:00:24]} 30. Bc4+ {[%clk 0:00:34]}  d5 {[%clk 0:00:20]} 31. Ba6 {[%clk 0:00:34]}  Bc3 {[%clk 0:00:18]} 32. Ke3 {[%clk 0:00:33]}  Ba5 {[%clk 0:00:16]} 33. Bc8+ {[%clk 0:00:32]}  Kf6 {[%clk 0:00:13]} 34. Kd3 {[%clk 0:00:32]}  g5 {[%clk 0:00:10]} 35. Bd4+ {[%clk 0:00:29]}  Kg6 {[%clk 0:00:10]} 36. f5+ {[%clk 0:00:29]}  Kh6 {[%clk 0:00:10]} 37. Bc5 {[%clk 0:00:29]}  g4 {[%clk 0:00:10]} 38. Kd4 {[%clk 0:00:27]}  Kg5 {[%clk 0:00:10]} 39. Ke5 {[%clk 0:00:26]}  Bc7+ {[%clk 0:00:09]} 40. Bd6 {[%clk 0:00:25]}  Bd8 {[%clk 0:00:09]} 41. Kd4 {[%clk 0:00:22]}  Bb6+ {[%clk 0:00:09]} 42. Bc5 {[%clk 0:00:22]}  Ba5 {[%clk 0:00:09]} 43. Be7+ {[%clk 0:00:21]}  Kf4 {[%clk 0:00:09]} 44. Bd6+ {[%clk 0:00:20]}  Kg5 {[%clk 0:00:08]} 45. Kc5 {[%clk 0:00:21]}  h4 {[%clk 0:00:07]} 46. g3 {[%clk 0:00:20]}  h3 {[%clk 0:00:07]} 47. Be7+ {[%clk 0:00:21]}  Kh5 {[%clk 0:00:06]} 48. Ba6 {[%clk 0:00:17]}  Be1 {[%clk 0:00:06]} 49. Bd6 {[%clk 0:00:16]}  Kg5 {[%clk 0:00:06]} 50. Bf4+ {[%clk 0:00:12]}  Kxf5 {[%clk 0:00:07]} 51. Kd6 {[%clk 0:00:13]}  Bb4+ {[%clk 0:00:06]} 52. Kc7 {[%clk 0:00:12]}  c5 {[%clk 0:00:06]} 53. Bc8+ {[%clk 0:00:12]}  Ke4 {[%clk 0:00:06]} 54. Bxg4 {[%clk 0:00:13]}  d4 {[%clk 0:00:06]} 55. Bxh3 {[%clk 0:00:13]}  c4 {[%clk 0:00:06]} 56. Bg2+ {[%clk 0:00:13]}  Kf5 {[%clk 0:00:07]} 57. Bxa8 {[%clk 0:00:14]}  d3 {[%clk 0:00:07]} 58. cxd3 {[%clk 0:00:14]}  cxd3 {[%clk 0:00:08]} 59. Bf3 {[%clk 0:00:13]}  d2 {[%clk 0:00:08]} 60. Kb6 {[%clk 0:00:12]}  Bd6 {[%clk 0:00:00]} 61. Bxd6 {[%clk 0:00:11]} 1-0


[Site "https://www.chess.com"]

[Event "Titled Tuesday Blitz July 11 Early 2023"]
[White "He, Anthony"]
[Black "Khandelwal, Ankush"]
[WhiteFideId "2088215"]
[BlackFideId "413470"]
[WhiteElo "2991"]
[BlackElo "2509"]
[Result "1-0"]
[Round "1"]
[TimeControl "180+2"]
[Date "2023.07.11"]
[WhiteClock "0:02:11"]
[BlackClock "0:01:44"]
[Board "10"]

1. d4 {[%clk 0:02:58]}  Nf6 {[%clk 0:02:59]} 2. Nc3 {[%clk 0:02:57]}  g6 {[%clk 0:02:56]} 3. Bf4 {[%clk 0:02:57]}  Bg7 {[%clk 0:02:56]} 4. e3 {[%clk 0:02:54]}  d6 {[%clk 0:02:55]} 5. h4 {[%clk 0:02:54]}  h5 {[%clk 0:02:54]} 6. Nf3 {[%clk 0:02:53]}  Nbd7 {[%clk 0:02:52]} 7. Bc4 {[%clk 0:02:52]}  c6 {[%clk 0:02:49]} 8. Qd3 {[%clk 0:02:47]}  O-O {[%clk 0:02:34]} 9. Bb3 {[%clk 0:02:35]}  d5 {[%clk 0:02:27]} 10. Ng5 {[%clk 0:02:22]}  e5 {[%clk 0:02:17]} 11. dxe5 {[%clk 0:02:20]}  Ng4 {[%clk 0:02:14]} 12. e6 {[%clk 0:02:17]}  Nde5 {[%clk 0:02:09]} 13. exf7+ {[%clk 0:02:17]}  Rxf7 {[%clk 0:02:06]} 14. Qe2 {[%clk 0:02:16]}  Re7 {[%clk 0:02:02]} 15. O-O-O {[%clk 0:02:16]}  Kh8 {[%clk 0:01:56]} 16. f3 {[%clk 0:02:10]}  Nf6 {[%clk 0:01:44]} 17. Bxe5 {[%clk 0:02:11]} 1-0


[Site "https://www.chess.com"]

[Event "Titled Tuesday Blitz July 11 Early 2023"]
[White "Shvedova, Alexandra"]
[Black "Terry, Renato"]
[WhiteFideId "54154782"]
[BlackFideId "3803457"]
[WhiteElo "2509"]
[BlackElo "2986"]
[Result "0-1"]
[Round "1"]
[TimeControl "180+2"]
[Date "2023.07.11"]
[WhiteClock "0:00:05"]
[BlackClock "0:00:07"]
[Board "11"]

1. e4 {[%clk 0:03:00]}  e6 {[%clk 0:02:55]} 2. d4 {[%clk 0:03:00]}  d5 {[%clk 0:02:54]} 3. Nd2 {[%clk 0:03:01]}  Be7 {[%clk 0:02:54]} 4. Ngf3 {[%clk 0:03:00]}  Nf6 {[%clk 0:02:54]} 5. e5 {[%clk 0:02:59]}  Nfd7 {[%clk 0:02:54]} 6. Bd3 {[%clk 0:02:59]}  c5 {[%clk 0:02:55]} 7. c3 {[%clk 0:03:00]}  Nc6 {[%clk 0:02:55]} 8. O-O {[%clk 0:03:00]}  g5 {[%clk 0:02:55]} 9. dxc5 {[%clk 0:02:58]}  Ndxe5 {[%clk 0:02:55]} 10. Bb5 {[%clk 0:02:52]}  Bd7 {[%clk 0:02:54]} 11. b4 {[%clk 0:02:39]}  Ng6 {[%clk 0:02:50]} 12. Bb2 {[%clk 0:02:33]}  Bf6 {[%clk 0:02:50]} 13. Qb3 {[%clk 0:02:23]}  O-O {[%clk 0:02:47]} 14. c4 {[%clk 0:02:13]}  g4 {[%clk 0:02:47]} 15. Bxc6 {[%clk 0:02:08]}  bxc6 {[%clk 0:02:45]} 16. Ne1 {[%clk 0:01:57]}  Rb8 {[%clk 0:01:59]} 17. Nc2 {[%clk 0:01:43]}  Nf4 {[%clk 0:01:48]} 18. Kh1 {[%clk 0:01:18]}  e5 {[%clk 0:01:35]} 19. f3 {[%clk 0:01:08]}  dxc4 {[%clk 0:01:22]} 20. Nxc4 {[%clk 0:01:07]}  Be6 {[%clk 0:01:22]} 21. Rad1 {[%clk 0:01:01]}  Qc8 {[%clk 0:01:19]} 22. Qc3 {[%clk 0:00:54]}  Bd5 {[%clk 0:00:51]} 23. Nd6 {[%clk 0:00:51]}  Qe6 {[%clk 0:00:51]} 24. Ne4 {[%clk 0:00:49]}  Bg7 {[%clk 0:00:49]} 25. Ne3 {[%clk 0:00:43]}  gxf3 {[%clk 0:00:48]} 26. gxf3 {[%clk 0:00:40]}  Qh3 {[%clk 0:00:48]} 27. Qd2 {[%clk 0:00:33]}  Rfd8 {[%clk 0:00:41]} 28. Qf2 {[%clk 0:00:32]}  Rxb4 {[%clk 0:00:36]} 29. Nxd5 {[%clk 0:00:31]}  cxd5 {[%clk 0:00:35]} 30. Ng3 {[%clk 0:00:25]}  d4 {[%clk 0:00:30]} 31. c6 {[%clk 0:00:23]}  Rc8 {[%clk 0:00:29]} 32. Ba3 {[%clk 0:00:22]}  Rc4 {[%clk 0:00:28]} 33. Bc1 {[%clk 0:00:18]}  Ng6 {[%clk 0:00:25]} 34. Ne4 {[%clk 0:00:13]}  R4xc6 {[%clk 0:00:25]} 35. Ba3 {[%clk 0:00:12]}  Bh6 {[%clk 0:00:21]} 36. Nd6 {[%clk 0:00:11]}  R8c7 {[%clk 0:00:14]} 37. Nb5 {[%clk 0:00:11]}  Rb7 {[%clk 0:00:13]} 38. Nd6 {[%clk 0:00:11]}  Rb8 {[%clk 0:00:13]} 39. Ne4 {[%clk 0:00:10]}  f5 {[%clk 0:00:13]} 40. Nc5 {[%clk 0:00:10]}  Bf8 {[%clk 0:00:13]} 41. Nd7 {[%clk 0:00:09]}  Rd8 {[%clk 0:00:10]} 42. Nxf8 {[%clk 0:00:10]}  Nxf8 {[%clk 0:00:10]} 43. Rg1+ {[%clk 0:00:10]}  Ng6 {[%clk 0:00:11]} 44. f4 {[%clk 0:00:05]}  Qxa3 {[%clk 0:00:07]} 0-1


[Site "https://www.chess.com"]

[Event "Titled Tuesday Blitz July 11 Early 2023"]
[White "Tokhirjonova, Gulrukhbegim"]
[Black "Svane, Rasmus"]
[WhiteFideId "14203626"]
[BlackFideId "4657101"]
[WhiteElo "2508"]
[BlackElo "2960"]
[Result "0-1"]
[Round "1"]
[TimeControl "180+2"]
[Date "2023.07.11"]
[WhiteClock "0:00:14"]
[BlackClock "0:00:25"]
[Board "13"]

1. e4 {[%clk 0:02:57]}  c6 {[%clk 0:02:59]} 2. d4 {[%clk 0:02:56]}  d5 {[%clk 0:03:00]} 3. e5 {[%clk 0:02:55]}  Bf5 {[%clk 0:03:00]} 4. Nf3 {[%clk 0:02:55]}  e6 {[%clk 0:03:00]} 5. Be2 {[%clk 0:02:55]}  Ne7 {[%clk 0:03:00]} 6. Nbd2 {[%clk 0:02:55]}  Nd7 {[%clk 0:03:00]} 7. Nb3 {[%clk 0:02:55]}  Ng6 {[%clk 0:03:01]} 8. Be3 {[%clk 0:02:52]}  f6 {[%clk 0:03:00]} 9. exf6 {[%clk 0:02:52]}  Qxf6 {[%clk 0:03:01]} 10. Qd2 {[%clk 0:02:49]}  Bd6 {[%clk 0:03:01]} 11. c4 {[%clk 0:02:43]}  O-O {[%clk 0:03:01]} 12. O-O {[%clk 0:02:41]}  h6 {[%clk 0:02:57]} 13. Rfe1 {[%clk 0:02:39]}  Be4 {[%clk 0:02:54]} 14. Qc3 {[%clk 0:02:05]}  Nf4 {[%clk 0:02:13]} 15. Nbd2 {[%clk 0:01:44]}  Bg6 {[%clk 0:01:55]} 16. Bf1 {[%clk 0:01:41]}  Bh5 {[%clk 0:01:46]} 17. b4 {[%clk 0:01:33]}  Rae8 {[%clk 0:01:41]} 18. b5 {[%clk 0:01:33]}  cxb5 {[%clk 0:01:39]} 19. cxb5 {[%clk 0:01:21]}  Qg6 {[%clk 0:01:21]} 20. Kh1 {[%clk 0:01:15]}  Rc8 {[%clk 0:01:16]} 21. Qb3 {[%clk 0:01:11]}  Nb6 {[%clk 0:01:11]} 22. Rac1 {[%clk 0:01:07]}  Qf6 {[%clk 0:00:57]} 23. a4 {[%clk 0:01:03]}  Bg6 {[%clk 0:00:50]} 24. a5 {[%clk 0:01:00]}  Nd7 {[%clk 0:00:51]} 25. a6 {[%clk 0:00:45]}  bxa6 {[%clk 0:00:51]} 26. bxa6 {[%clk 0:00:46]}  Nb6 {[%clk 0:00:52]} 27. Ne5 {[%clk 0:00:45]}  Rxc1 {[%clk 0:00:49]} 28. Rxc1 {[%clk 0:00:43]}  Be4 {[%clk 0:00:36]} 29. Nxe4 {[%clk 0:00:41]}  dxe4 {[%clk 0:00:37]} 30. Nc4 {[%clk 0:00:36]}  Nxc4 {[%clk 0:00:31]} 31. Rxc4 {[%clk 0:00:26]}  Nd5 {[%clk 0:00:29]} 32. Rc6 {[%clk 0:00:20]}  Bf4 {[%clk 0:00:30]} 33. Bxf4 {[%clk 0:00:17]}  Qxf4 {[%clk 0:00:30]} 34. Qg3 {[%clk 0:00:16]}  Qxf2 {[%clk 0:00:28]} 35. Qxf2 {[%clk 0:00:16]}  Rxf2 {[%clk 0:00:29]} 36. Kg1 {[%clk 0:00:16]}  Rd2 {[%clk 0:00:26]} 37. Rxe6 {[%clk 0:00:17]}  Rxd4 {[%clk 0:00:25]} 38. Kf2 {[%clk 0:00:16]}  e3+ {[%clk 0:00:24]} 39. Kf3 {[%clk 0:00:16]}  Rf4+ {[%clk 0:00:24]} 40. Ke2 {[%clk 0:00:16]}  Rf2+ {[%clk 0:00:25]} 41. Ke1 {[%clk 0:00:17]}  Rc2 {[%clk 0:00:24]} 42. Bd3 {[%clk 0:00:15]}  Rc1+ {[%clk 0:00:24]} 43. Ke2 {[%clk 0:00:14]}  Nf4+ {[%clk 0:00:24]} 44. Kxe3 {[%clk 0:00:14]}  Nxe6 {[%clk 0:00:25]} 0-1


[Site "https://www.chess.com"]

[Event "Titled Tuesday Blitz July 11 Early 2023"]
[White "Bok, Benjamin"]
[Black "brm72"]
[WhiteFideId "1017063"]
[WhiteElo "2954"]
[BlackElo "2508"]
[Result "1-0"]
[Round "1"]
[TimeControl "180+2"]
[Date "2023.07.11"]
[WhiteClock "0:00:04"]
[BlackClock "0:00:09"]
[Board "14"]

1. d4 {[%clk 0:03:00]}  Nf6 {[%clk 0:03:00]} 2. c4 {[%clk 0:03:00]}  g6 {[%clk 0:03:00]} 3. g3 {[%clk 0:03:00]}  c6 {[%clk 0:02:58]} 4. Nf3 {[%clk 0:02:59]}  Bg7 {[%clk 0:02:56]} 5. Bg2 {[%clk 0:02:59]}  d5 {[%clk 0:02:56]} 6. b3 {[%clk 0:02:59]}  O-O {[%clk 0:02:55]} 7. O-O {[%clk 0:02:59]}  dxc4 {[%clk 0:02:55]} 8. bxc4 {[%clk 0:03:00]}  c5 {[%clk 0:02:54]} 9. Bb2 {[%clk 0:03:00]}  Qb6 {[%clk 0:02:54]} 10. Qb3 {[%clk 0:02:58]}  Ne4 {[%clk 0:02:50]} 11. e3 {[%clk 0:02:53]}  Nc6 {[%clk 0:02:47]} 12. Ne5 {[%clk 0:02:51]}  Nd6 {[%clk 0:02:44]} 13. Nxc6 {[%clk 0:02:49]}  bxc6 {[%clk 0:02:40]} 14. dxc5 {[%clk 0:02:49]}  Qxc5 {[%clk 0:02:37]} 15. Bxg7 {[%clk 0:02:49]}  Kxg7 {[%clk 0:02:36]} 16. Nd2 {[%clk 0:02:50]}  Be6 {[%clk 0:02:26]} 17. Qc3+ {[%clk 0:02:49]}  f6 {[%clk 0:02:21]} 18. Rfc1 {[%clk 0:02:49]}  a5 {[%clk 0:02:10]} 19. Nb3 {[%clk 0:01:42]}  Qxc4 {[%clk 0:02:08]} 20. Nd4 {[%clk 0:01:34]}  Qxc3 {[%clk 0:01:40]} 21. Rxc3 {[%clk 0:01:33]}  Bd5 {[%clk 0:01:36]} 22. Bxd5 {[%clk 0:01:32]}  cxd5 {[%clk 0:01:34]} 23. Ne6+ {[%clk 0:01:33]}  Kf7 {[%clk 0:01:35]} 24. Nxf8 {[%clk 0:01:34]}  Rxf8 {[%clk 0:01:33]} 25. Rb1 {[%clk 0:01:32]}  Ke6 {[%clk 0:01:31]} 26. Rb6 {[%clk 0:01:26]}  Ra8 {[%clk 0:01:28]} 27. a4 {[%clk 0:01:25]}  Ra7 {[%clk 0:01:27]} 28. Kg2 {[%clk 0:01:23]}  h5 {[%clk 0:01:28]} 29. Rc5 {[%clk 0:01:18]}  Ke5 {[%clk 0:01:24]} 30. Rbc6 {[%clk 0:01:15]}  g5 {[%clk 0:01:03]} 31. Rc7 {[%clk 0:01:09]}  Rxc7 {[%clk 0:01:02]} 32. Rxc7 {[%clk 0:01:10]}  e6 {[%clk 0:01:03]} 33. Rh7 {[%clk 0:01:05]}  Nc4 {[%clk 0:01:00]} 34. Rxh5 {[%clk 0:01:01]}  Nb2 {[%clk 0:01:00]} 35. Rh8 {[%clk 0:00:57]}  Nxa4 {[%clk 0:00:59]} 36. Ra8 {[%clk 0:00:57]}  Nc3 {[%clk 0:00:59]} 37. Rxa5 {[%clk 0:00:56]}  Kf5 {[%clk 0:00:58]} 38. Ra6 {[%clk 0:00:54]}  Ne4 {[%clk 0:00:55]} 39. f3 {[%clk 0:00:51]}  Nd2 {[%clk 0:00:54]} 40. Kf2 {[%clk 0:00:44]}  Nc4 {[%clk 0:00:51]} 41. h4 {[%clk 0:00:34]}  gxh4 {[%clk 0:00:50]} 42. gxh4 {[%clk 0:00:35]}  Ne5 {[%clk 0:00:49]} 43. h5 {[%clk 0:00:34]}  Nf7 {[%clk 0:00:49]} 44. Ra7 {[%clk 0:00:22]}  Nh6 {[%clk 0:00:44]} 45. Rg7 {[%clk 0:00:22]}  e5 {[%clk 0:00:41]} 46. Rd7 {[%clk 0:00:19]}  Kg5 {[%clk 0:00:34]} 47. Rxd5 {[%clk 0:00:19]}  Kxh5 {[%clk 0:00:33]} 48. f4 {[%clk 0:00:14]}  Nf7 {[%clk 0:00:30]} 49. Kf3 {[%clk 0:00:13]}  Kg6 {[%clk 0:00:29]} 50. Ra5 {[%clk 0:00:11]}  Kf5 {[%clk 0:00:24]} 51. e4+ {[%clk 0:00:11]}  Kg6 {[%clk 0:00:24]} 52. Kg4 {[%clk 0:00:08]}  Nh6+ {[%clk 0:00:23]} 53. Kf3 {[%clk 0:00:08]}  exf4 {[%clk 0:00:23]} 54. Kxf4 {[%clk 0:00:08]}  Nf7 {[%clk 0:00:23]} 55. Rc5 {[%clk 0:00:06]}  Nh6 {[%clk 0:00:19]} 56. Rc1 {[%clk 0:00:04]}  Kf7 {[%clk 0:00:17]} 57. Rh1 {[%clk 0:00:04]}  Ng8 {[%clk 0:00:18]} 58. Rh7+ {[%clk 0:00:03]}  Kg6 {[%clk 0:00:17]} 59. Ra7 {[%clk 0:00:03]}  Nh6 {[%clk 0:00:17]} 60. Ra6 {[%clk 0:00:03]}  Kg7 {[%clk 0:00:16]} 61. Ra1 {[%clk 0:00:03]}  Kg6 {[%clk 0:00:16]} 62. Rh1 {[%clk 0:00:03]}  Nf7 {[%clk 0:00:16]} 63. Rg1+ {[%clk 0:00:03]}  Ng5 {[%clk 0:00:10]} 64. e5 {[%clk 0:00:03]}  Kf7 {[%clk 0:00:09]} 65. Kf5 {[%clk 0:00:03]}  Nf3 {[%clk 0:00:09]} 66. e6+ {[%clk 0:00:03]}  Ke7 {[%clk 0:00:07]} 67. Rg7+ {[%clk 0:00:03]}  Ke8 {[%clk 0:00:08]} 68. Kxf6 {[%clk 0:00:03]}  Nd4 {[%clk 0:00:09]} 69. Rg8# {[%clk 0:00:04]} 1-0


[Site "https://www.chess.com"]

[Event "Titled Tuesday Blitz July 11 Early 2023"]
[White "Rodriguez, Santiago"]
[Black "Makarian, Rudik"]
[WhiteFideId "3000591"]
[BlackFideId "44105681"]
[WhiteElo "2507"]
[BlackElo "2951"]
[Result "1-0"]
[Round "1"]
[TimeControl "180+2"]
[Date "2023.07.11"]
[WhiteClock "0:01:12"]
[BlackClock "0:00:28"]
[Board "15"]

1. d4 {[%clk 0:03:00]}  Nf6 {[%clk 0:02:59]} 2. Bg5 {[%clk 0:02:59]}  d5 {[%clk 0:02:59]} 3. Bxf6 {[%clk 0:02:57]}  exf6 {[%clk 0:02:59]} 4. e3 {[%clk 0:02:55]}  Bd6 {[%clk 0:02:58]} 5. Bd3 {[%clk 0:02:54]}  O-O {[%clk 0:02:56]} 6. Nd2 {[%clk 0:02:52]}  c6 {[%clk 0:02:50]} 7. Qf3 {[%clk 0:02:51]}  a5 {[%clk 0:02:44]} 8. g4 {[%clk 0:02:51]}  Re8 {[%clk 0:02:28]} 9. Ne2 {[%clk 0:02:51]}  Nd7 {[%clk 0:02:27]} 10. h4 {[%clk 0:02:50]}  b5 {[%clk 0:02:21]} 11. g5 {[%clk 0:02:50]}  Bb7 {[%clk 0:02:20]} 12. O-O-O {[%clk 0:02:27]}  a4 {[%clk 0:02:15]} 13. Rdg1 {[%clk 0:02:25]}  a3 {[%clk 0:02:13]} 14. b3 {[%clk 0:02:24]}  Bf8 {[%clk 0:01:52]} 15. Nf4 {[%clk 0:02:19]}  Ne5 {[%clk 0:01:16]} 16. dxe5 {[%clk 0:01:31]}  fxe5 {[%clk 0:01:17]} 17. Bxh7+ {[%clk 0:01:28]}  Kxh7 {[%clk 0:01:18]} 18. Nh5 {[%clk 0:01:28]}  Qe7 {[%clk 0:01:09]} 19. Nf6+ {[%clk 0:01:23]}  Qxf6 {[%clk 0:00:28]} 20. gxf6 {[%clk 0:01:21]}  g6 {[%clk 0:00:28]} 21. h5 {[%clk 0:01:19]}  g5 {[%clk 0:00:28]} 22. Qf5+ {[%clk 0:01:15]}  Kh8 {[%clk 0:00:27]} 23. Qxg5 {[%clk 0:01:13]}  Bh6 {[%clk 0:00:28]} 24. Qxh6# {[%clk 0:01:12]} 1-0


[Site "https://www.chess.com"]